{"text_format":"1","workbook":"xlsx","n_sheets":4,"sheets":["gerechten","ingrediënten","menukeuze","printblad"],"not_rendered":{"charts":0,"images":31,"macros":1,"external_links":0,"defined_names":1,"comments":0,"pivot_tables":0},"unopened":[],"bounds":{"document_bytes":16777216,"sheet_cells":100000,"rows_first":2000,"rows_last":500,"rows_between":2000,"halvings":0,"cell_chars":16384,"cell_head_chars":4096},"cells_cut":0,"cells_raw":0,"read":"whole","date_system":"1900"}

{"sheet":"gerechten","index":0,"n_rows":59,"n_cols":22,"rows_kept":59,"cut":false,"hidden":true,"merged":[[54,14,56,16],[54,20,56,22],[24,2,24,22],[26,20,34,22],[45,2,53,4],[45,5,53,7],[45,8,53,10],[45,11,53,13],[45,14,53,16],[45,17,53,19],[45,20,53,22],[43,2,43,19],[26,2,34,4],[26,5,34,7],[26,8,34,10],[26,11,34,13],[26,17,34,19],[35,8,37,10],[35,11,37,13],[35,14,37,16],[35,17,37,19],[26,14,34,16],[5,2,5,22],[2,5,2,8],[3,5,3,8],[7,2,15,4],[7,5,15,7],[7,8,15,10],[7,11,15,13],[7,14,15,16],[7,17,15,19],[2,21,2,22],[35,20,37,22],[54,17,56,19],[7,20,15,22],[35,2,37,4],[35,5,37,7],[16,20,18,22],[16,2,18,4],[16,5,18,7],[16,8,18,10],[16,11,18,13],[16,14,18,16],[16,17,18,19],[54,2,56,4],[54,5,56,7],[54,8,56,10],[54,11,56,13]]}
[]
[]
[null,null,"Naam:",null,null,1,null,null,null,null,null,null,null,null,null,null,null,null,null,null,null,"werkblad 1"]
[null,null,"Klas:",null,null,1]
[]
[null,null,"Broodje"]
[]
[]
[]
[]
[]
[]
[]
[]
[]
[]
[null,null,"Wrap met groentenmengsel",null,null,"Broodje gezond met kaas, ei, tomaat, komkommer en sla",null,null,"Broodjes kip kerrie met kippendijreepjes, kerrie mayo, atjar",null,null,"Broodje beenham met warme beenham en honing mosterdsaus",null,null,"Broodje brie met brie, honing en walnoten",null,null,"Broodje carpaccio met carpaccio, kaas, pesto, rucola, pijnboompitten ",null,null,"Club Sandwich met  kipfilet, ei, bacon, sla, tomaat, komkommer, mayo"]
[]
[]
[]
[null,null,null,null,null,null,"ü",null,null,null,null,null,null,null,null,"ü"]
[]
[]
[]
[null,null,"Broodje"]
[]
[]
[]
[]
[]
[]
[]
[]
[]
[]
[null,null,"Broodje eiersalade met eiersalade, ijsbergsla, komkommer",null,null,"Broodje geitenkaas met geitenkaas, walnoten, rucola, honing, boter",null,null,"Broodje gekookt ei met gekookt ei, ijsbergsla, boter",null,null,"Broodje gerookte kip feta met gerookte kipfilet, ijsbergsla, fetacreme, komkommer",null,null,"Broodje hummus met hummus, gegrilde groenten, rucola, walnoten",null,null,"Broodje Italie met salami,   kaas, zoetzure paprika, rucola, boter\n",null,null,"Broodje kruidenkaas met kruidenkaas, ijsbergsla, komkommer "]
[]
[]
[]
[null,null,null,"ü",null,null,"ü",null,null,"ü",null,null,null,null,null,"ü",null,null,null,null,null,"ü"]
[]
[]
[]
[null,null,"Broodje"]
[]
[]
[]
[]
[]
[]
[]
[]
[]
[]
[null,null,"Broodje mozzarella met pesto, tomaat, mozzarella, ijsbergsla",null,null,"Broodje omelet met omelet, bacon, kaas, rucola, boter",null,null,"Broodje pulled pork met pulled pork, iijsbergsla, bbq saus",null,null,"Broodje San met bacon, gerookte kip, ei, sla, tomaat, cocktailsaus",null,null,"Broodje tonijn met tonijnsalade, tomaat,  ijsbergsla",null,null,"Broodje zalm met gerookte zalm, ijsbergsla, kruidenkaas"]
[]
[]
[]
[null,null,null,"ü"]

{"sheet":"ingrediënten","index":1,"n_rows":40,"n_cols":19,"rows_kept":40,"cut":false,"hidden":true,"merged":[[2,18,2,19],[35,14,37,16],[16,14,18,16],[24,2,24,16],[26,2,34,4],[26,5,34,7],[26,8,34,10],[26,11,34,13],[26,14,34,16],[16,2,18,4],[16,5,18,7],[16,8,18,10],[16,11,18,13],[35,2,37,4],[35,5,37,7],[35,8,37,10],[35,11,37,13],[2,5,2,8],[3,5,3,8],[5,2,5,16],[7,2,15,4],[7,5,15,7],[7,8,15,10],[7,11,15,13],[7,14,15,16]]}
[]
[]
[null,null,"Naam:",null,null,"w",null,null,null,null,null,null,null,null,null,null,null,null,"werkblad 2"]
[null,null,"Klas:",null,null,"w"]
[]
[null,null,"voorgerechten"]
[]
[]
[]
[]
[]
[]
[]
[]
[]
[]
[null,null,"Broodje gezond met kaas, ei, tomaat, komkommer en sla",null,null,"Broodje brie met brie, honing en walnoten",null,null,"Broodje eiersalade met eiersalade, ijsbergsla, komkommer",null,null,"Broodje geitenkaas met geitenkaas, walnoten, rucola, honing, boter",null,null,"Broodje gekookt ei met gekookt ei, ijsbergsla, boter"]
[]
[]
[]
[null,null,null,null,null,null,"ü"]
[]
[]
[]
[null,null,"tussengerechten"]
[]
[]
[]
[]
[]
[]
[]
[]
[]
[]
[null,null,"Broodje hummus met hummus, gegrilde groenten, rucola, walnoten",null,null,"Broodje kruidenkaas met kruidenkaas, ijsbergsla, komkommer ",null,null,"Broodje mozzarella met pesto, tomaat, mozzarella, ijsbergsla"]
[]
[]
[]
[null,null,null,null,null,null,null,null,null,"ü"]

{"sheet":"menukeuze","index":2,"n_rows":42,"n_cols":24,"rows_kept":42,"cut":false,"hidden":false,"merged":[[2,19,2,20],[5,12,5,20],[7,15,15,17],[7,18,15,20],[16,12,18,14],[16,15,18,17],[16,18,18,20],[7,12,15,14],[2,5,2,8],[3,5,3,8],[5,2,5,10],[7,2,15,4],[7,5,15,7],[7,8,15,10],[16,2,18,4],[16,5,18,7],[16,8,18,10],[20,2,20,10],[20,12,20,20],[22,18,30,20],[31,12,33,14],[31,15,33,17],[31,18,33,20],[31,2,33,4],[31,5,33,7],[31,8,33,10],[22,12,30,14],[22,15,30,17],[22,2,30,4],[22,5,30,7],[22,8,30,10],[37,2,37,12],[38,2,38,4],[39,2,39,4],[40,2,40,4],[41,2,41,4],[38,5,38,12],[39,5,39,12],[40,5,40,12],[41,5,41,12]]}
[null,null,null,null,null,null,null,null,null,null,null,null,null,null,null,null,null,null,null,null,null,null,null,"maak keuze"]
[null,null,null,null,null,null,null,null,null,null,null,null,null,null,null,null,null,null,null,null,null,null,null,"groene salade van groene asperge, doperwten, courgette en rucola"]
[null,null,"Naam:",null,null,null,null,null,null,null,null,null,null,null,null,null,null,null,null,"werkblad 3",null,null,null,"tomatentartaar met augurk en mosterd"]
[null,null,"Klas:",null,null,null,null,null,null,null,null,null,null,null,null,null,null,null,null,null,null,null,null,"gebakken tempeh-saté met warme gele rijst"]
[]
[null,null,"Soort broodje",null,null,null,null,null,null,null,null,null,"Sla",null,null,null,null,null,null,null,null,null,null,"maak keuze"]
[null,null,null,null,null,null,null,null,null,null,null,null,null,null,null,null,null,null,null,null,null,null,null,"doperwtensoep met bosui en munt "]
[null,null,null,null,null,null,null,null,null,null,null,null,null,null,null,null,null,null,null,null,null,null,null,"koude salade van courgette-spaghetti met pesto en tomaten"]
[null,null,null,null,null,null,null,null,null,null,null,null,null,null,null,null,null,null,null,null,null,null,null,"bloemkoolsoep met crostini"]
[]
[null,null,null,null,null,null,null,null,null,null,null,null,null,null,null,null,null,null,null,null,null,null,null,"maak keuze"]
[null,null,null,null,null,null,null,null,null,null,null,null,null,null,null,null,null,null,null,null,null,null,null,"bloemkool-maistaart met cherrytomaatjes en mosterd"]
[null,null,null,null,null,null,null,null,null,null,null,null,null,null,null,null,null,null,null,null,null,null,null,"oosterse aubergine-schotel met soja en sesam uit de oven"]
[null,null,null,null,null,null,null,null,null,null,null,null,null,null,null,null,null,null,null,null,null,null,null,"met kaas gevulde ravioli in tomaten-kruidensaus"]
[]
[null,null,null,null,null,null,null,null,null,null,null,null,null,null,null,null,null,null,null,null,null,null,null,"maak keuze"]
[null,null,"Witte zachte bol",null,null,"Focaccia broodje",null,null,"Waldkornbol",null,null,null,"IJsbergsla",null,null,"Ruccola",null,null,"Kropsla",null,null,null,null,"panna cotta met rode zomervruchten "]
[null,null,null,null,null,null,null,null,null,null,null,null,null,null,null,null,null,null,null,null,null,null,null,"kaasplankje met pruimencompote"]
[null,null,null,null,null,null,null,null,null,null,null,null,null,null,null,null,null,null,null,null,null,null,null,"chocoladetaart met karamel en amandel"]
[]
[null,null,"Smeersel",null,null,null,null,null,null,null,null,null,"Saus"]
[]
[]
[]
[]
[]
[]
[]
[]
[]
[]
[null,null,"Boter",null,null,"Margarine",null,null,"Geen",null,null,null,"Mayonaise",null,null,"Cocktailsaus",null,null,"Geen"]
[]
[]
[]
[]
[]
[null,null,"Mijn gepersonaliseerd broodje"]
[null,null,"Soort broodje"]
[null,null,"Sla"]
[null,null,"Smeersel"]
[null,null,"Saus"]

{"sheet":"printblad","index":3,"n_rows":52,"n_cols":6,"rows_kept":52,"cut":false,"hidden":true,"merged":[[17,2,17,3],[18,2,18,3],[19,2,19,3],[40,2,40,3],[47,2,47,3],[34,2,34,3],[35,2,35,3],[36,2,36,3],[37,2,37,3],[28,2,28,3],[29,2,29,3],[26,2,26,3],[27,2,27,3],[31,2,31,3],[32,2,32,3],[33,2,33,3],[5,2,5,3],[14,2,14,3],[23,2,23,3],[24,2,24,3],[25,2,25,3],[20,2,20,3],[21,2,21,3],[6,2,6,3],[7,2,7,3],[8,2,8,3],[9,2,9,3],[10,2,10,3],[11,2,11,3],[12,2,12,3],[15,2,15,3],[16,2,16,3]]}
[]
[]
[null,null,{"$f":"gerechten!C3","v":"Naam:"},{"$f":"gerechten!F3","v":1}]
[null,null,{"$f":"gerechten!C4","v":"Klas:"},{"$f":"gerechten!F4","v":1}]
[]
[null,null,"voorgerechten",null,"gerechten","ingrediënten"]
[null,null,{"$f":"gerechten!C17","v":"Wrap met groentenmengsel"},null,{"$f":"IF(gerechten!D$21=\"ü\",\"geschikt\",\"ongeschikt\")","v":"ongeschikt"}]
[null,null,{"$f":"gerechten!F17","v":"Broodje gezond met kaas, ei, tomaat, komkommer en sla"},null,{"$f":"IF(gerechten!G$21=\"ü\",\"geschikt\",\"ongeschikt\")","v":"geschikt"},{"$f":"IF(ingrediënten!D$21=\"ü\",\"geschikt\",\"ongeschikt\")","v":"ongeschikt"}]
[null,null,{"$f":"gerechten!I17","v":"Broodjes kip kerrie met kippendijreepjes, kerrie mayo, atjar"},null,{"$f":"IF(gerechten!J$21=\"ü\",\"geschikt\",\"ongeschikt\")","v":"ongeschikt"}]
[null,null,{"$f":"gerechten!L17","v":"Broodje beenham met warme beenham en honing mosterdsaus"},null,{"$f":"IF(gerechten!M$21=\"ü\",\"geschikt\",\"ongeschikt\")","v":"ongeschikt"},{"$f":"IF(ingrediënten!G$21=\"ü\",\"geschikt\",\"ongeschikt\")","v":"geschikt"}]
[null,null,{"$f":"gerechten!O17","v":"Broodje brie met brie, honing en walnoten"},null,{"$f":"IF(gerechten!P$21=\"ü\",\"geschikt\",\"ongeschikt\")","v":"geschikt"},{"$f":"IF(ingrediënten!J$21=\"ü\",\"geschikt\",\"ongeschikt\")","v":"ongeschikt"}]
[null,null,{"$f":"gerechten!R17","v":"Broodje carpaccio met carpaccio, kaas, pesto, rucola, pijnboompitten "},null,{"$f":"IF(gerechten!S$21=\"ü\",\"geschikt\",\"ongeschikt\")","v":"ongeschikt"},{"$f":"IF(ingrediënten!M$21=\"ü\",\"geschikt\",\"ongeschikt\")","v":"ongeschikt"}]
[null,null,{"$f":"gerechten!U17","v":"Club Sandwich met  kipfilet, ei, bacon, sla, tomaat, komkommer, mayo"},null,{"$f":"IF(gerechten!V$21=\"ü\",\"geschikt\",\"ongeschikt\")","v":"ongeschikt"},{"$f":"IF(ingrediënten!P$21=\"ü\",\"geschikt\",\"ongeschikt\")","v":"ongeschikt"}]
[]
[null,null,"tussengerechten",null,"gerechten","ingrediënten"]
[null,null,{"$f":"gerechten!C36","v":"Broodje eiersalade met eiersalade, ijsbergsla, komkommer"},null,{"$f":"IF(gerechten!D$40=\"ü\",\"geschikt\",\"ongeschikt\")","v":"geschikt"},{"$f":"IF(ingrediënten!D$40=\"ü\",\"geschikt\",\"ongeschikt\")","v":"ongeschikt"}]
[null,null,{"$f":"gerechten!F36","v":"Broodje geitenkaas met geitenkaas, walnoten, rucola, honing, boter"},null,{"$f":"IF(gerechten!G$40=\"ü\",\"geschikt\",\"ongeschikt\")","v":"geschikt"}]
[null,null,{"$f":"gerechten!I36","v":"Broodje gekookt ei met gekookt ei, ijsbergsla, boter"},null,{"$f":"IF(gerechten!J$40=\"ü\",\"geschikt\",\"ongeschikt\")","v":"geschikt"},{"$f":"IF(ingrediënten!G$40=\"ü\",\"geschikt\",\"ongeschikt\")","v":"ongeschikt"}]
[null,null,{"$f":"gerechten!L36","v":"Broodje gerookte kip feta met gerookte kipfilet, ijsbergsla, fetacreme, komkommer"},null,{"$f":"IF(gerechten!M$40=\"ü\",\"geschikt\",\"ongeschikt\")","v":"ongeschikt"},{"$f":"IF(ingrediënten!J$40=\"ü\",\"geschikt\",\"ongeschikt\")","v":"geschikt"}]
[null,null,{"$f":"gerechten!O36","v":"Broodje hummus met hummus, gegrilde groenten, rucola, walnoten"},null,{"$f":"IF(gerechten!P$40=\"ü\",\"geschikt\",\"ongeschikt\")","v":"geschikt"},{"$f":"IF(ingrediënten!M$40=\"ü\",\"geschikt\",\"ongeschikt\")","v":"ongeschikt"}]
[null,null,{"$f":"gerechten!R36","v":"Broodje Italie met salami,   kaas, zoetzure paprika, rucola, boter\n"},null,{"$f":"IF(gerechten!S$40=\"ü\",\"geschikt\",\"ongeschikt\")","v":"ongeschikt"},{"$f":"IF(ingrediënten!P$40=\"ü\",\"geschikt\",\"ongeschikt\")","v":"ongeschikt"}]
[null,null,{"$f":"gerechten!U36","v":"Broodje kruidenkaas met kruidenkaas, ijsbergsla, komkommer "},null,{"$f":"IF(gerechten!V$40=\"ü\",\"geschikt\",\"ongeschikt\")","v":"geschikt"}]
[]
[null,null,"hoofdgerechten",null,"gerechten","ingrediënten"]
[null,null,{"$f":"gerechten!C55","v":"Broodje mozzarella met pesto, tomaat, mozzarella, ijsbergsla"},null,{"$f":"IF(gerechten!D$59=\"ü\",\"geschikt\",\"ongeschikt\")","v":"geschikt"},{"$f":"IF(ingrediënten!#REF!=\"ü\",\"geschikt\",\"ongeschikt\")","v":{"$error":"#REF!"}}]
[null,null,{"$f":"gerechten!F55","v":"Broodje omelet met omelet, bacon, kaas, rucola, boter"},null,{"$f":"IF(gerechten!G$59=\"ü\",\"geschikt\",\"ongeschikt\")","v":"ongeschikt"},{"$f":"IF(ingrediënten!#REF!=\"ü\",\"geschikt\",\"ongeschikt\")","v":{"$error":"#REF!"}}]
[null,null,{"$f":"gerechten!I55","v":"Broodje pulled pork met pulled pork, iijsbergsla, bbq saus"},null,{"$f":"IF(gerechten!J$59=\"ü\",\"geschikt\",\"ongeschikt\")","v":"ongeschikt"},{"$f":"IF(ingrediënten!#REF!=\"ü\",\"geschikt\",\"ongeschikt\")","v":{"$error":"#REF!"}}]
[null,null,{"$f":"gerechten!L55","v":"Broodje San met bacon, gerookte kip, ei, sla, tomaat, cocktailsaus"},null,{"$f":"IF(gerechten!M$59=\"ü\",\"geschikt\",\"ongeschikt\")","v":"ongeschikt"}]
[null,null,{"$f":"gerechten!O55","v":"Broodje tonijn met tonijnsalade, tomaat,  ijsbergsla"},null,{"$f":"IF(gerechten!P$59=\"ü\",\"geschikt\",\"ongeschikt\")","v":"ongeschikt"}]
[null,null,{"$f":"gerechten!R55","v":"Broodje zalm met gerookte zalm, ijsbergsla, kruidenkaas"},null,{"$f":"IF(gerechten!S$59=\"ü\",\"geschikt\",\"ongeschikt\")","v":"ongeschikt"},{"$f":"IF(ingrediënten!#REF!=\"ü\",\"geschikt\",\"ongeschikt\")","v":{"$error":"#REF!"}}]
[]
[null,null,"nagerechten",null,"gerechten","ingredienten"]
[null,null,{"$f":"ingrediënten!#REF!","v":{"$error":"#REF!"}},null,null,{"$f":"IF(ingrediënten!#REF!=\"ü\",\"geschikt\",\"ongeschikt\")","v":{"$error":"#REF!"}}]
[null,null,{"$f":"ingrediënten!#REF!","v":{"$error":"#REF!"}},null,null,{"$f":"IF(ingrediënten!#REF!=\"ü\",\"geschikt\",\"ongeschikt\")","v":{"$error":"#REF!"}}]
[null,null,{"$f":"ingrediënten!#REF!","v":{"$error":"#REF!"}},null,null,{"$f":"IF(ingrediënten!#REF!=\"ü\",\"geschikt\",\"ongeschikt\")","v":{"$error":"#REF!"}}]
[null,null,{"$f":"ingrediënten!#REF!","v":{"$error":"#REF!"}},null,null,{"$f":"IF(ingrediënten!#REF!=\"ü\",\"geschikt\",\"ongeschikt\")","v":{"$error":"#REF!"}}]
[null,null,{"$f":"ingrediënten!#REF!","v":{"$error":"#REF!"}},null,null,{"$f":"IF(ingrediënten!#REF!=\"ü\",\"geschikt\",\"ongeschikt\")","v":{"$error":"#REF!"}}]
[null,null,{"$f":"ingrediënten!#REF!","v":{"$error":"#REF!"}},null,null,{"$f":"IF(ingrediënten!#REF!=\"ü\",\"geschikt\",\"ongeschikt\")","v":{"$error":"#REF!"}}]
[]
[]
[null,null,{"$f":"menukeuze!C38","v":"Mijn gepersonaliseerd broodje"}]
[null,null,{"$f":"menukeuze!C39","v":"Soort broodje"},{"$f":"menukeuze!F39","v":0}]
[null,null,{"$f":"menukeuze!C40","v":"Sla"},{"$f":"menukeuze!F40","v":0}]
[null,null,{"$f":"menukeuze!C41","v":"Smeersel"},{"$f":"menukeuze!F41","v":0}]
[null,null,{"$f":"menukeuze!C42","v":"Saus"},{"$f":"menukeuze!F42","v":0}]
[]
[]
[null,null,{"$f":"menukeuze!#REF!","v":{"$error":"#REF!"}}]
[null,null,{"$f":"menukeuze!#REF!","v":{"$error":"#REF!"}},{"$f":"menukeuze!#REF!","v":{"$error":"#REF!"}}]
[null,null,{"$f":"menukeuze!#REF!","v":{"$error":"#REF!"}},{"$f":"menukeuze!#REF!","v":{"$error":"#REF!"}}]
[null,null,{"$f":"menukeuze!#REF!","v":{"$error":"#REF!"}},{"$f":"menukeuze!#REF!","v":{"$error":"#REF!"}}]
[null,null,{"$f":"menukeuze!#REF!","v":{"$error":"#REF!"}},{"$f":"menukeuze!#REF!","v":{"$error":"#REF!"}}]